[Event "*** Titled Tuesday Blitz"]
[Site "Chess.com"]
[Date "2021.04.06"]
[Round "7"]
[White "Byniolus"]
[Black "pastouche06"]
[Result "1-0"]
[WhiteElo "2875"]
[BlackElo "2604"]
[TimeControl "180+1"]
[EndTime "11:19:23 PDT"]
[Termination "Byniolus won on time"]

1. d4 {[%clk 0:03:00.9]} 1... d5 {[%clk 0:02:59.1]} 2. Bf4 {[%clk 0:03:00.4]}
2... Nf6 {[%clk 0:02:57.6]} 3. e3 {[%clk 0:02:59.2]} 3... c5 {[%clk 0:02:57.8]}
4. c3 {[%clk 0:02:59]} 4... Nc6 {[%clk 0:02:58.1]} 5. Nd2 {[%clk 0:02:59.2]}
5... e6 {[%clk 0:02:58.5]} 6. Bd3 {[%clk 0:02:58.1]} 6... Bd6 {[%clk 0:02:58.2]}
7. Bxd6 {[%clk 0:02:58.3]} 7... Qxd6 {[%clk 0:02:58]} 8. f4 {[%clk 0:02:59.2]}
8... cxd4 {[%clk 0:02:53.7]} 9. cxd4 {[%clk 0:02:58.3]} 9... O-O {[%clk
0:02:53.6]} 10. a3 {[%clk 0:02:57.1]} 10... a5 {[%clk 0:02:48.9]} 11. Ngf3
{[%clk 0:02:55]} 11... b6 {[%clk 0:02:49.1]} 12. Qe2 {[%clk 0:02:52.7]} 12...
Bb7 {[%clk 0:02:45.5]} 13. O-O {[%clk 0:02:52.2]} 13... Ne7 {[%clk 0:02:40.9]}
14. Rfc1 {[%clk 0:02:45.2]} 14... Rfc8 {[%clk 0:02:21]} 15. Ne5 {[%clk
0:02:34.9]} 15... Rxc1+ {[%clk 0:02:16]} 16. Rxc1 {[%clk 0:02:35.8]} 16... Rc8
{[%clk 0:02:15.9]} 17. Rxc8+ {[%clk 0:02:35.6]} 17... Bxc8 {[%clk 0:02:16.8]}
18. Ndf3 {[%clk 0:02:32.2]} 18... h6 {[%clk 0:01:50.7]} 19. Qc2 {[%clk
0:02:10.4]} 19... Bb7 {[%clk 0:01:50]} 20. Nd2 {[%clk 0:01:59.3]} 20... Qd8
{[%clk 0:01:11.7]} 21. g4 {[%clk 0:01:18.4]} 21... Qc8 {[%clk 0:00:53.8]} 22.
Qxc8+ {[%clk 0:01:18]} 22... Bxc8 {[%clk 0:00:54.7]} 23. g5 {[%clk 0:01:08]}
23... hxg5 {[%clk 0:00:53.2]} 24. fxg5 {[%clk 0:01:08.9]} 24... Ne8 {[%clk
0:00:53.4]} 25. h4 {[%clk 0:01:04]} 25... f6 {[%clk 0:00:48.4]} 26. Nef3 {[%clk
0:00:58.6]} 26... Nd6 {[%clk 0:00:42.4]} 27. Kf2 {[%clk 0:00:57.5]} 27... Bd7
{[%clk 0:00:33.4]} 28. e4 {[%clk 0:00:45.3]} 28... dxe4 {[%clk 0:00:26.4]} 29.
Nxe4 {[%clk 0:00:46.2]} 29... Nxe4+ {[%clk 0:00:26.5]} 30. Bxe4 {[%clk
0:00:47.1]} 30... Kf7 {[%clk 0:00:17]} 31. Ke3 {[%clk 0:00:34.5]} 31... Bc6
{[%clk 0:00:14.1]} 32. Bxc6 {[%clk 0:00:29.5]} 32... Nxc6 {[%clk 0:00:14.1]} 33.
h5 {[%clk 0:00:30.4]} 33... fxg5 {[%clk 0:00:12.3]} 34. Nxg5+ {[%clk 0:00:31.3]}
34... Kf6 {[%clk 0:00:11.8]} 35. Ne4+ {[%clk 0:00:31.4]} 35... Kf5 {[%clk
0:00:10]} 36. Nd6+ {[%clk 0:00:31.6]} 36... Kg5 {[%clk 0:00:10]} 37. Nc4 {[%clk
0:00:32.1]} 37... b5 {[%clk 0:00:08.9]} 38. Nd6 {[%clk 0:00:27.9]} 38... b4
{[%clk 0:00:09.3]} 39. Ne8 {[%clk 0:00:22.7]} 39... Kh6 {[%clk 0:00:05.5]} 40.
a4 {[%clk 0:00:16.4]} 40... g6 {[%clk 0:00:04.1]} 41. hxg6 {[%clk 0:00:15.8]}
41... Kxg6 {[%clk 0:00:05]} 42. Kd3 {[%clk 0:00:16.1]} 42... Kf7 {[%clk
0:00:04.7]} 43. Nc7 {[%clk 0:00:13.5]} 43... Ke7 {[%clk 0:00:05.1]} 44. Kc4
{[%clk 0:00:14.1]} 44... Kd6 {[%clk 0:00:04.3]} 45. Nb5+ {[%clk 0:00:13.6]}
45... Kd7 {[%clk 0:00:04.7]} 46. Kc5 {[%clk 0:00:14.5]} 46... Ne7 {[%clk
0:00:04.1]} 47. Kb6 {[%clk 0:00:10.9]} 47... Nc6 {[%clk 0:00:03.7]} 48. Nc7
{[%clk 0:00:07.7]} 48... Kd6 {[%clk 0:00:03]} 49. Ne8+ {[%clk 0:00:04.7]} 49...
Kd5 {[%clk 0:00:02.1]} 50. Nc7+ {[%clk 0:00:05.6]} 50... Kd6 {[%clk 0:00:02.4]}
51. Ne8+ {[%clk 0:00:05.7]} 51... Kd5 {[%clk 0:00:02.7]} 52. Nf6+ {[%clk
0:00:06.4]} 52... Kd6 {[%clk 0:00:02.7]} 53. Kb5 {[%clk 0:00:06.5]} 53... Ne7
{[%clk 0:00:01.2]} 54. Kxa5 {[%clk 0:00:07.4]} 1-0

[Event "*** Titled Tuesday Blitz"]
[Site "Chess.com"]
[Date "2021.04.06"]
[Round "7"]
[White "ehrenfeld"]
[Black "Kotofeyca"]
[Result "1-0"]
[WhiteElo "2537"]
[BlackElo "2389"]
[TimeControl "180+1"]
[EndTime "11:19:24 PDT"]
[Termination "ehrenfeld won by resignation"]

1. e4 {[%clk 0:03:00.9]} 1... c5 {[%clk 0:02:59.9]} 2. Nf3 {[%clk 0:02:58.9]}
2... d6 {[%clk 0:03:00.4]} 3. Bc4 {[%clk 0:02:58.3]} 3... a6 {[%clk 0:02:59.8]}
4. Bb3 {[%clk 0:02:57.2]} 4... Nc6 {[%clk 0:02:57]} 5. c3 {[%clk 0:02:56.9]}
5... Nf6 {[%clk 0:02:55]} 6. d3 {[%clk 0:02:53.9]} 6... Bg4 {[%clk 0:02:53.5]}
7. h3 {[%clk 0:02:48.4]} 7... Bh5 {[%clk 0:02:51.7]} 8. g4 {[%clk 0:02:41.8]}
8... Bg6 {[%clk 0:02:51]} 9. Nh4 {[%clk 0:02:37.7]} 9... e6 {[%clk 0:02:46.6]}
10. Nxg6 {[%clk 0:02:31.1]} 10... hxg6 {[%clk 0:02:46]} 11. Bf4 {[%clk
0:02:22.4]} 11... d5 {[%clk 0:02:41.5]} 12. Qe2 {[%clk 0:02:10.5]} 12... b5
{[%clk 0:02:02.9]} 13. e5 {[%clk 0:02:01.6]} 13... Nd7 {[%clk 0:02:01.5]} 14.
Nd2 {[%clk 0:02:01.1]} 14... g5 {[%clk 0:01:55]} 15. Bg3 {[%clk 0:02:00.1]}
15... Qc7 {[%clk 0:01:52.8]} 16. Nf3 {[%clk 0:01:59.8]} 16... c4 {[%clk
0:01:44.3]} 17. Bc2 {[%clk 0:01:56.2]} 17... cxd3 {[%clk 0:01:41.9]} 18. Bxd3
{[%clk 0:01:55.3]} 18... Be7 {[%clk 0:01:42.5]} 19. a4 {[%clk 0:01:49.5]} 19...
bxa4 {[%clk 0:01:31.8]} 20. Bxa6 {[%clk 0:01:44.9]} 20... Nc5 {[%clk 0:01:23.5]}
21. Bb5 {[%clk 0:01:43.4]} 21... O-O {[%clk 0:01:18.6]} 22. h4 {[%clk
0:01:27.5]} 22... Rfb8 {[%clk 0:01:17.4]} 23. hxg5 {[%clk 0:01:21.4]} 23... Nb3
{[%clk 0:00:40.2]} 24. Rxa4 {[%clk 0:01:04.3]} 24... d4 {[%clk 0:00:33]} 25. Qe4
{[%clk 0:00:52]} 25... g6 {[%clk 0:00:19.4]} 26. Qxc6 {[%clk 0:00:51.6]} 26...
Qxc6 {[%clk 0:00:12.9]} 27. Bxc6 {[%clk 0:00:51.5]} 27... Rxa4 {[%clk 0:00:13]}
28. Bxa4 {[%clk 0:00:50.9]} 28... dxc3 {[%clk 0:00:13.1]} 29. bxc3 {[%clk
0:00:48.4]} 29... Nc5 {[%clk 0:00:12.5]} 30. Bc2 {[%clk 0:00:47.8]} 30... Rb2
{[%clk 0:00:10.7]} 31. Nd4 {[%clk 0:00:36.1]} 31... Ra2 {[%clk 0:00:05.2]} 32.
O-O {[%clk 0:00:33.9]} 32... Na4 {[%clk 0:00:04.2]} 33. Bxa4 {[%clk 0:00:32.9]}
33... Rxa4 {[%clk 0:00:05.1]} 34. f4 {[%clk 0:00:31.1]} 34... Rc4 {[%clk
0:00:05]} 35. Rf3 {[%clk 0:00:22.6]} 35... Bc5 {[%clk 0:00:05.9]} 36. Bf2 {[%clk
0:00:21.4]} 36... Kg7 {[%clk 0:00:05.3]} 37. Rd3 {[%clk 0:00:21]} 37... Kf8
{[%clk 0:00:02.7]} 38. Kg2 {[%clk 0:00:20.9]} 38... Be7 {[%clk 0:00:01.4]} 39.
Kf3 {[%clk 0:00:21]} 39... Ra4 {[%clk 0:00:02.2]} 40. Be3 {[%clk 0:00:20.4]}
40... Ra1 {[%clk 0:00:02.1]} 41. c4 {[%clk 0:00:19]} 41... Rf1+ {[%clk 0:00:02]}
42. Ke2 {[%clk 0:00:18.8]} 42... Ra1 {[%clk 0:00:02.7]} 43. Rc3 {[%clk
0:00:18.5]} 43... Ra2+ {[%clk 0:00:03.6]} 44. Kd3 {[%clk 0:00:18.3]} 44... Bc5
{[%clk 0:00:04.2]} 45. Nc2 {[%clk 0:00:18.4]} 45... Ra5 {[%clk 0:00:03.7]} 46.
Bxc5+ {[%clk 0:00:18]} 46... Rxc5 {[%clk 0:00:04.6]} 47. Kd4 {[%clk 0:00:18.4]}
47... Rc8 {[%clk 0:00:05.5]} 48. c5 {[%clk 0:00:18.7]} 48... Rd8+ {[%clk
0:00:06.4]} 49. Ke4 {[%clk 0:00:19.1]} 49... Ke7 {[%clk 0:00:06.3]} 50. c6
{[%clk 0:00:19.2]} 50... Rc8 {[%clk 0:00:06.3]} 51. c7 {[%clk 0:00:19.4]} 51...
Kd7 {[%clk 0:00:06.6]} 52. Nd4 {[%clk 0:00:19.5]} 52... Rxc7 {[%clk 0:00:07.5]}
53. Rxc7+ {[%clk 0:00:19.2]} 53... Kxc7 {[%clk 0:00:08.4]} 54. Kd3 {[%clk
0:00:18.9]} 54... Kd7 {[%clk 0:00:09.3]} 55. Kc4 {[%clk 0:00:19.8]} 55... Kc7
{[%clk 0:00:10.1]} 56. Kc5 {[%clk 0:00:20]} 56... Kd7 {[%clk 0:00:10.8]} 57. Nb5
{[%clk 0:00:19.5]} 57... Ke7 {[%clk 0:00:10.4]} 58. Kc6 {[%clk 0:00:19.6]} 58...
Ke8 {[%clk 0:00:10.7]} 59. Kc7 {[%clk 0:00:19.8]} 59... Ke7 {[%clk 0:00:10.9]}
60. Nd6 {[%clk 0:00:20]} 60... Kf8 {[%clk 0:00:11.1]} 61. Kd7 {[%clk 0:00:20.1]}
61... Kg7 {[%clk 0:00:12]} 62. Ke7 {[%clk 0:00:20]} 62... Kg8 {[%clk 0:00:12.9]}
63. Nxf7 {[%clk 0:00:20.1]} 63... Kg7 {[%clk 0:00:13.8]} 64. Kxe6 {[%clk
0:00:20.2]} 1-0

[Event "*** Titled Tuesday Blitz"]
[Site "Chess.com"]
[Date "2021.04.06"]
[Round "7"]
[White "nrvisakh"]
[Black "kingnb"]
[Result "1/2-1/2"]
[WhiteElo "2775"]
[BlackElo "2600"]
[TimeControl "180+1"]
[EndTime "11:19:26 PDT"]
[Termination "Game drawn by stalemate"]

1. e4 {[%clk 0:02:35.2]} 1... d5 {[%clk 0:02:59.1]} 2. exd5 {[%clk 0:02:34.2]}
2... Nf6 {[%clk 0:02:59.7]} 3. Bb5+ {[%clk 0:02:32.5]} 3... Bd7 {[%clk
0:02:59.7]} 4. Bc4 {[%clk 0:02:29.6]} 4... Bg4 {[%clk 0:02:59.2]} 5. f3 {[%clk
0:02:29.1]} 5... Bf5 {[%clk 0:02:59.3]} 6. Nc3 {[%clk 0:02:25.4]} 6... Nbd7
{[%clk 0:02:58.6]} 7. Nge2 {[%clk 0:02:25.1]} 7... Nb6 {[%clk 0:02:58.4]} 8.
Bb5+ {[%clk 0:02:24.6]} 8... Bd7 {[%clk 0:02:57.9]} 9. a4 {[%clk 0:02:22.2]}
9... Nbxd5 {[%clk 0:02:56.3]} 10. O-O {[%clk 0:02:21.5]} 10... e6 {[%clk
0:02:56]} 11. Nxd5 {[%clk 0:02:20.8]} 11... exd5 {[%clk 0:02:51.5]} 12. d4
{[%clk 0:02:18.4]} 12... Be7 {[%clk 0:02:50.1]} 13. Bd3 {[%clk 0:02:16.7]} 13...
O-O {[%clk 0:02:49.9]} 14. c3 {[%clk 0:02:16.9]} 14... c6 {[%clk 0:02:39.7]} 15.
Bf4 {[%clk 0:02:12.6]} 15... Be6 {[%clk 0:02:38.5]} 16. Ng3 {[%clk 0:02:10]}
16... Bd6 {[%clk 0:02:36.3]} 17. Be5 {[%clk 0:02:08.6]} 17... Bxe5 {[%clk
0:02:21.9]} 18. dxe5 {[%clk 0:02:07.6]} 18... Nd7 {[%clk 0:02:22.2]} 19. f4
{[%clk 0:02:08]} 19... f5 {[%clk 0:02:22.1]} 20. exf6 {[%clk 0:01:53.5]} 20...
Nxf6 {[%clk 0:02:21.8]} 21. Qc2 {[%clk 0:01:52.5]} 21... Qc7 {[%clk 0:02:16.9]}
22. Rae1 {[%clk 0:01:51.3]} 22... Rae8 {[%clk 0:02:16.4]} 23. Re5 {[%clk
0:01:43.7]} 23... Bf7 {[%clk 0:02:01.8]} 24. Rg5 {[%clk 0:01:41.3]} 24... Kh8
{[%clk 0:01:56.5]} 25. Nf5 {[%clk 0:01:41]} 25... g6 {[%clk 0:01:53.8]} 26. Nh6
{[%clk 0:01:35.8]} 26... Ne4 {[%clk 0:01:49.6]} 27. Bxe4 {[%clk 0:01:34.9]}
27... Rxe4 {[%clk 0:01:50.5]} 28. f5 {[%clk 0:01:35.1]} 28... Be6 {[%clk
0:01:30]} 29. Qf2 {[%clk 0:01:03.5]} 29... Qg7 {[%clk 0:01:06.4]} 30. Rg4 {[%clk
0:00:39.7]} 30... Qxh6 {[%clk 0:00:20.3]} 31. Rxe4 {[%clk 0:00:38.6]} 31... dxe4
{[%clk 0:00:21.2]} 32. Qd4+ {[%clk 0:00:35.4]} 32... Qg7 {[%clk 0:00:21.4]} 33.
fxe6 {[%clk 0:00:34.8]} 33... Rxf1+ {[%clk 0:00:22.3]} 34. Kxf1 {[%clk
0:00:34.9]} 34... Qxd4 {[%clk 0:00:23.2]} 35. cxd4 {[%clk 0:00:34.4]} 35... Kg7
{[%clk 0:00:23.8]} 36. Ke2 {[%clk 0:00:34.8]} 36... Kf6 {[%clk 0:00:24.3]} 37.
Ke3 {[%clk 0:00:35.4]} 37... Kxe6 {[%clk 0:00:24.9]} 38. Kxe4 {[%clk 0:00:35.9]}
38... a5 {[%clk 0:00:25.3]} 39. h4 {[%clk 0:00:34]} 39... h5 {[%clk 0:00:24]}
40. Kf4 {[%clk 0:00:32.4]} 40... Kf6 {[%clk 0:00:20.5]} 41. g4 {[%clk
0:00:32.3]} 41... b6 {[%clk 0:00:20.9]} 42. gxh5 {[%clk 0:00:28.8]} 42... gxh5
{[%clk 0:00:21.8]} 43. b3 {[%clk 0:00:28.8]} 43... b5 {[%clk 0:00:22.2]} 44. d5
{[%clk 0:00:14.7]} 44... cxd5 {[%clk 0:00:18.6]} 45. axb5 {[%clk 0:00:14.1]}
45... Ke6 {[%clk 0:00:19.2]} 46. Ke3 {[%clk 0:00:11.9]} 46... Ke5 {[%clk
0:00:18.7]} 47. Kd3 {[%clk 0:00:12]} 47... d4 {[%clk 0:00:18.1]} 48. b6 {[%clk
0:00:11.4]} 48... Kd6 {[%clk 0:00:18.7]} 49. Kxd4 {[%clk 0:00:10.9]} 49... Kc6
{[%clk 0:00:19.3]} 50. b7 {[%clk 0:00:09.9]} 50... Kxb7 {[%clk 0:00:19.7]} 51.
Kc5 {[%clk 0:00:09.1]} 51... Ka6 {[%clk 0:00:20.6]} 52. Kc6 {[%clk 0:00:07.8]}
52... a4 {[%clk 0:00:21.1]} 53. bxa4 {[%clk 0:00:08.1]} 53... Ka5 {[%clk
0:00:22]} 54. Kd6 {[%clk 0:00:08.6]} 54... Kxa4 {[%clk 0:00:22.9]} 55. Ke6
{[%clk 0:00:09.5]} 55... Kb5 {[%clk 0:00:23.6]} 56. Kf6 {[%clk 0:00:10.4]} 56...
Kc6 {[%clk 0:00:24.5]} 57. Kg6 {[%clk 0:00:11.3]} 57... Kd7 {[%clk 0:00:24.5]}
58. Kxh5 {[%clk 0:00:12.2]} 58... Ke7 {[%clk 0:00:24]} 59. Kg6 {[%clk
0:00:13.1]} 59... Kf8 {[%clk 0:00:24.3]} 60. Kh7 {[%clk 0:00:14]} 60... Kf7
{[%clk 0:00:24.6]} 61. h5 {[%clk 0:00:14.9]} 61... Kf8 {[%clk 0:00:25.2]} 62. h6
{[%clk 0:00:15.8]} 62... Kf7 {[%clk 0:00:25.7]} 63. Kh8 {[%clk 0:00:16.7]} 63...
Kg6 {[%clk 0:00:25.5]} 64. h7 {[%clk 0:00:17.6]} 64... Kf7 {[%clk 0:00:26.4]}
1/2-1/2

[Event "*** Titled Tuesday Blitz"]
[Site "Chess.com"]
[Date "2021.04.06"]
[Round "7"]
[White "TimofeevAr"]
[Black "vlad_Sid"]
[Result "0-1"]
[WhiteElo "2829"]
[BlackElo "2613"]
[TimeControl "180+1"]
[EndTime "11:19:27 PDT"]
[Termination "vlad_Sid won by resignation"]

1. c4 {[%clk 0:03:00.9]} 1... c5 {[%clk 0:02:37.4]} 2. Nf3 {[%clk 0:02:59.9]}
2... Nc6 {[%clk 0:02:37.2]} 3. Nc3 {[%clk 0:02:59.2]} 3... Nf6 {[%clk
0:02:36.2]} 4. d4 {[%clk 0:02:56.1]} 4... cxd4 {[%clk 0:02:37.1]} 5. Nxd4 {[%clk
0:02:56.3]} 5... e6 {[%clk 0:02:37.6]} 6. g3 {[%clk 0:02:53.6]} 6... Qb6 {[%clk
0:02:37]} 7. Nc2 {[%clk 0:02:45.6]} 7... Ne5 {[%clk 0:02:36.7]} 8. Ne3 {[%clk
0:02:38.4]} 8... Qc6 {[%clk 0:02:35.8]} 9. Bg2 {[%clk 0:02:37.7]} 9... Qb6
{[%clk 0:02:29.4]} 10. O-O {[%clk 0:02:36.6]} 10... Be7 {[%clk 0:02:23.5]} 11.
b3 {[%clk 0:02:33.5]} 11... O-O {[%clk 0:02:22.3]} 12. Bb2 {[%clk 0:02:33.4]}
12... a6 {[%clk 0:02:16.6]} 13. Rc1 {[%clk 0:02:30]} 13... d6 {[%clk 0:02:09.1]}
14. Na4 {[%clk 0:02:20.9]} 14... Qc7 {[%clk 0:02:06.2]} 15. Qd4 {[%clk
0:02:17.5]} 15... Bd7 {[%clk 0:02:03.2]} 16. Qb6 {[%clk 0:02:16.6]} 16... Rac8
{[%clk 0:02:00]} 17. Qxc7 {[%clk 0:02:03.3]} 17... Rxc7 {[%clk 0:02:00.9]} 18.
Nb6 {[%clk 0:02:03.5]} 18... Ng6 {[%clk 0:01:45.4]} 19. Rfd1 {[%clk 0:01:57.7]}
19... Rb8 {[%clk 0:01:43.6]} 20. a4 {[%clk 0:01:55.3]} 20... Ne8 {[%clk
0:01:42.6]} 21. a5 {[%clk 0:01:51.7]} 21... Bc6 {[%clk 0:01:41.2]} 22. Ned5
{[%clk 0:01:47.9]} 22... exd5 {[%clk 0:01:36.8]} 23. cxd5 {[%clk 0:01:47.8]}
23... Bb5 {[%clk 0:01:37.2]} 24. Rxc7 {[%clk 0:01:45.1]} 24... Nxc7 {[%clk
0:01:38.1]} 25. Rc1 {[%clk 0:01:45.5]} 25... Ne8 {[%clk 0:01:38.4]} 26. e4
{[%clk 0:01:43.2]} 26... Bd8 {[%clk 0:01:34.5]} 27. f4 {[%clk 0:01:41.5]} 27...
Nf6 {[%clk 0:01:29.7]} 28. e5 {[%clk 0:01:34]} 28... Nd7 {[%clk 0:01:27.1]} 29.
Nc4 {[%clk 0:01:24.1]} 29... Bxc4 {[%clk 0:01:24.6]} 30. bxc4 {[%clk 0:01:23]}
30... dxe5 {[%clk 0:01:24.8]} 31. fxe5 {[%clk 0:01:23.2]} 31... Ngxe5 {[%clk
0:01:23.6]} 32. Bd4 {[%clk 0:01:11.8]} 32... Bxa5 {[%clk 0:01:21.1]} 33. c5
{[%clk 0:01:12]} 33... Nd3 {[%clk 0:01:20.3]} 34. Ra1 {[%clk 0:01:11.2]} 34...
Bb4 {[%clk 0:01:05.4]} 35. c6 {[%clk 0:01:11]} 35... bxc6 {[%clk 0:00:58.1]} 36.
dxc6 {[%clk 0:01:11.2]} 36... Bc5 {[%clk 0:00:58.4]} 37. Bxc5 {[%clk 0:01:06.8]}
37... N7xc5 {[%clk 0:00:59.3]} 38. Bh3 {[%clk 0:01:04.9]} 38... Ne6 {[%clk
0:00:54.2]} 39. Rxa6 {[%clk 0:01:01.6]} 39... Rc8 {[%clk 0:00:53.8]} 40. Bg2
{[%clk 0:00:55.7]} 40... Kf8 {[%clk 0:00:50.9]} 41. Kf1 {[%clk 0:00:53.6]} 41...
Rc7 {[%clk 0:00:49.8]} 42. Ke2 {[%clk 0:00:52.8]} 42... Nb4 {[%clk 0:00:49.5]}
43. Ra8+ {[%clk 0:00:52.5]} 43... Ke7 {[%clk 0:00:49.2]} 44. Ke3 {[%clk
0:00:52.6]} 44... Nxc6 {[%clk 0:00:48.4]} 45. Bd5 {[%clk 0:00:52.2]} 45... Ne5
{[%clk 0:00:47.5]} 46. h3 {[%clk 0:00:50.7]} 46... h5 {[%clk 0:00:45.4]} 47. Ke4
{[%clk 0:00:50.6]} 47... Kf6 {[%clk 0:00:43.9]} 48. Ra1 {[%clk 0:00:49.1]} 48...
Ng5+ {[%clk 0:00:43.6]} 49. Kd4 {[%clk 0:00:48.2]} 49... Nc6+ {[%clk 0:00:33.8]}
50. Ke3 {[%clk 0:00:44.6]} 50... Nxh3 {[%clk 0:00:26.8]} 51. Rh1 {[%clk
0:00:39]} 51... Ng5 {[%clk 0:00:26.1]} 52. Rxh5 {[%clk 0:00:38.5]} 52... Re7+
{[%clk 0:00:25.2]} 53. Kf2 {[%clk 0:00:36.8]} 53... Ne5 {[%clk 0:00:23.1]} 54.
Rh4 {[%clk 0:00:35.3]} 54... Ng6 {[%clk 0:00:22.9]} 55. Ra4 {[%clk 0:00:34.6]}
55... Re5 {[%clk 0:00:23.2]} 56. Ra6+ {[%clk 0:00:34.5]} 56... Ne6 {[%clk
0:00:23.6]} 57. Bc4 {[%clk 0:00:33.8]} 57... Ne7 {[%clk 0:00:23.7]} 58. Ra8
{[%clk 0:00:31.9]} 58... Rc5 {[%clk 0:00:23.8]} 59. Bb3 {[%clk 0:00:31.6]} 59...
Rc3 {[%clk 0:00:23.3]} 60. Ba2 {[%clk 0:00:31.8]} 60... Nf5 {[%clk 0:00:23.5]}
61. g4 {[%clk 0:00:29.5]} 61... Nfd4 {[%clk 0:00:23.7]} 62. Ra5 {[%clk
0:00:26.7]} 62... Rc5 {[%clk 0:00:22.9]} 63. Rxc5 {[%clk 0:00:23.6]} 63... Nxc5
{[%clk 0:00:21.4]} 64. g5+ {[%clk 0:00:24.5]} 64... Kg6 {[%clk 0:00:20.7]} 65.
Ke3 {[%clk 0:00:24.2]} 65... Nde6 {[%clk 0:00:20.7]} 66. Bb1+ {[%clk 0:00:21.4]}
66... Kxg5 {[%clk 0:00:20.4]} 0-1

[Event "*** Titled Tuesday Blitz"]
[Site "Chess.com"]
[Date "2021.04.06"]
[Round "7"]
[White "PushingpawnsNYC"]
[Black "Balla_Tamas"]
[Result "0-1"]
[WhiteElo "2318"]
[BlackElo "2558"]
[TimeControl "180+1"]
[EndTime "11:19:27 PDT"]
[Termination "Balla_Tamas won on time"]

1. e4 {[%clk 0:03:00.9]} 1... c5 {[%clk 0:02:59]} 2. Nc3 {[%clk 0:03:00.1]} 2...
e6 {[%clk 0:02:58.7]} 3. f4 {[%clk 0:02:52.8]} 3... Nc6 {[%clk 0:02:56.1]} 4.
Bb5 {[%clk 0:02:52.2]} 4... Nge7 {[%clk 0:02:56.3]} 5. Nf3 {[%clk 0:02:51.5]}
5... a6 {[%clk 0:02:56.5]} 6. Bxc6 {[%clk 0:02:42.9]} 6... Nxc6 {[%clk
0:02:57.4]} 7. O-O {[%clk 0:02:41.6]} 7... Be7 {[%clk 0:02:49.7]} 8. d3 {[%clk
0:02:41.2]} 8... d5 {[%clk 0:02:49.3]} 9. Qe1 {[%clk 0:02:33.6]} 9... Nd4 {[%clk
0:02:34.3]} 10. Qf2 {[%clk 0:02:25]} 10... Nxf3+ {[%clk 0:02:29.7]} 11. Qxf3
{[%clk 0:02:16.2]} 11... d4 {[%clk 0:02:29.7]} 12. Ne2 {[%clk 0:02:09.8]} 12...
f5 {[%clk 0:02:29.6]} 13. c3 {[%clk 0:02:00]} 13... dxc3 {[%clk 0:02:20.2]} 14.
bxc3 {[%clk 0:01:56.7]} 14... O-O {[%clk 0:02:20.6]} 15. Rb1 {[%clk 0:01:49.9]}
15... Rb8 {[%clk 0:02:17.5]} 16. d4 {[%clk 0:01:40.1]} 16... fxe4 {[%clk
0:02:00.4]} 17. Qxe4 {[%clk 0:01:37.3]} 17... Qd5 {[%clk 0:02:00.6]} 18. Qxd5
{[%clk 0:01:28.7]} 18... exd5 {[%clk 0:01:59]} 19. Be3 {[%clk 0:01:28.8]} 19...
c4 {[%clk 0:01:52]} 20. Ng3 {[%clk 0:01:17.6]} 20... b5 {[%clk 0:01:48.5]} 21.
Rb2 {[%clk 0:01:10.4]} 21... Rb6 {[%clk 0:01:45.2]} 22. a4 {[%clk 0:01:02.5]}
22... b4 {[%clk 0:01:42]} 23. cxb4 {[%clk 0:01:00.9]} 23... Rxb4 {[%clk
0:01:41.9]} 24. Rfb1 {[%clk 0:00:51.9]} 24... Rxa4 {[%clk 0:01:33.2]} 25. Rb6
{[%clk 0:00:45.4]} 25... c3 {[%clk 0:01:19.4]} 26. Rc6 {[%clk 0:00:43.7]} 26...
Rc4 {[%clk 0:01:18.7]} 27. Rxc4 {[%clk 0:00:31.3]} 27... dxc4 {[%clk 0:01:18.7]}
28. d5 {[%clk 0:00:25.8]} 28... a5 {[%clk 0:01:17.1]} 29. Bd4 {[%clk 0:00:24]}
29... Bb4 {[%clk 0:01:15.5]} 30. Be5 {[%clk 0:00:22.9]} 30... h5 {[%clk
0:01:09.9]} 31. Rc1 {[%clk 0:00:20.8]} 31... h4 {[%clk 0:01:09.5]} 32. Ne2
{[%clk 0:00:21]} 32... Bb7 {[%clk 0:01:06]} 33. d6 {[%clk 0:00:20.3]} 33... Rd8
{[%clk 0:01:03.4]} 34. Nxc3 {[%clk 0:00:16.3]} 34... Bxd6 {[%clk 0:01:02.8]} 35.
Rd1 {[%clk 0:00:15.8]} 35... Be7 {[%clk 0:01:02.8]} 36. Rxd8+ {[%clk 0:00:15.3]}
36... Bxd8 {[%clk 0:01:03.7]} 37. Kf2 {[%clk 0:00:15.8]} 37... Bc6 {[%clk
0:01:00.4]} 38. Ke3 {[%clk 0:00:16.1]} 38... Bxg2 {[%clk 0:00:56.3]} 39. Kd4
{[%clk 0:00:16.2]} 39... Bf1 {[%clk 0:00:56.2]} 40. Kc5 {[%clk 0:00:16]} 40...
Kf7 {[%clk 0:00:55]} 41. Kb5 {[%clk 0:00:16.4]} 41... g6 {[%clk 0:00:53]} 42.
Ne4 {[%clk 0:00:14.4]} 42... c3+ {[%clk 0:00:47.6]} 43. Ka4 {[%clk 0:00:13.5]}
43... c2 {[%clk 0:00:47]} 44. Bb2 {[%clk 0:00:13.4]} 44... Bc7 {[%clk
0:00:44.4]} 45. Ng5+ {[%clk 0:00:12.9]} 45... Kg8 {[%clk 0:00:43.7]} 46. Ne6
{[%clk 0:00:13.1]} 46... Bd6 {[%clk 0:00:40.3]} 47. Kb3 {[%clk 0:00:12.6]} 47...
Kf7 {[%clk 0:00:39.7]} 48. Ng5+ {[%clk 0:00:12.5]} 48... Ke8 {[%clk 0:00:39.1]}
49. Kxc2 {[%clk 0:00:12.6]} 49... Bxf4 {[%clk 0:00:38.7]} 50. Nf3 {[%clk
0:00:13.3]} 50... h3 {[%clk 0:00:36.4]} 51. Be5 {[%clk 0:00:11.9]} 51... Bxe5
{[%clk 0:00:30.4]} 52. Nxe5 {[%clk 0:00:12.8]} 52... g5 {[%clk 0:00:30.6]} 53.
Nf3 {[%clk 0:00:09.7]} 53... g4 {[%clk 0:00:30.3]} 54. Ng5 {[%clk 0:00:07.7]}
54... g3 {[%clk 0:00:24.6]} 55. Nf3 {[%clk 0:00:08]} 55... gxh2 {[%clk 0:00:21]}
56. Nxh2 {[%clk 0:00:07.8]} 56... Bb5 {[%clk 0:00:19.7]} 57. Ng4 {[%clk
0:00:07.2]} 57... Kf7 {[%clk 0:00:18.9]} 58. Nh2 {[%clk 0:00:05.7]} 58... Kg6
{[%clk 0:00:18.8]} 59. Nf3 {[%clk 0:00:03.9]} 59... Kf5 {[%clk 0:00:16.9]} 60.
Nh2 {[%clk 0:00:03]} 60... Kf4 {[%clk 0:00:17]} 0-1